bitfinex/quotes_ETHUSD_20220213
["timestamp","ask_amount","ask_price","bid_price","bid_amount"]
[1644746462061,1.46095652,2911.4,2911.1,0.00283942]
[1644746462460,1.46095652,2911.3,2911.1,0.00283942]
[1644746462661,1.46095652,2911.2,2911.1,0.00283942]
[1644746462861,1.46095652,2911.2,2911.0,1.6]
[1644746463061,0.01091411,2911.4,2911.0,0.6]
[1644746463262,1.4610186,2911.3,2911.0,0.6]
[1644746463463,1.4610186,2911.3,2911.0,1.6]
[1644746463666,1.4610186,2911.3,2911.0,0.6]
[1644746463862,1.4610186,2911.2,2911.0,1.6]
[1644746464065,0.01091387,2911.4,2911.1,0.00283942]
[1644746464263,0.01091387,2911.4,2911.1,3.34736713]
[1644746464464,0.01091387,2911.4,2911.1,3.35020655]
[1644746464663,0.01091387,2911.4,2911.2,1.0]
[1644746464923,0.1716,2912.4,2911.8,1.04895824]
[1644746465124,1.46092242,2912.3,2911.8,1.04895824]
[1644746465320,1.46092242,2912.3,2911.3,0.00283942]
[1644746465321,1.46092242,2912.3,2911.9,0.00283942]
[1644746465521,0.1716,2912.2,2911.8,0.3]
[1644746465725,1.25831425,2911.7,2911.2,1.6]
[1644746465925,1.25831425,2911.7,2911.3,0.00283904]
[1644746466326,0.01091402,2911.6,2911.3,0.00283904]
[1644746466722,0.01091402,2911.6,2911.1,0.55]
[1644746466723,0.01091402,2911.6,2911.1,0.25]
[1644746466922,0.01091402,2911.6,2911.0,0.30283904]
[1644746467123,0.01091402,2911.6,2911.1,0.00283904]
[1644746467322,1.25831425,2911.7,2911.1,0.00283904]
[1644746467523,0.01091423,2911.4,2911.1,0.00283904]
[1644746467724,1.46114715,2911.3,2911.1,0.00283904]
[1644746467923,0.01091423,2911.4,2910.7,0.01375623]
[1644746468554,1.25831425,2911.7,2910.7,0.00283904]
[1644746468757,0.01091364,2911.4,2910.7,0.18584693]
[1644746468960,0.01091364,2911.4,2910.8,0.00283904]
[1644746469159,0.01091364,2911.4,2911.1,1.12954396]
[1644746469356,0.01091364,2911.4,2911.1,1.42954396]
[1644746469761,1.20831425,2911.7,2911.1,1.42954396]
[1644746469962,1.20831425,2911.7,2911.6,1.14098279]
[1644746470166,1.46103524,2911.6,2911.2,0.17493033]
[1644746470362,1.20831425,2911.7,2911.2,0.17493033]
[1644746470865,1.20831425,2911.7,2911.3,0.17209129]
[1644746471166,0.01091402,2911.6,2911.4,20.88719108]
[1644746471366,0.1716,2912.8,2912.4,0.97768012]
[1644746471667,1.46071382,2912.6,2912.4,0.97768012]
[1644746471861,1.46071382,2912.6,2911.7,4.5161201]
[1644746472062,1.46071382,2912.6,2911.7,4.51895914]
[1644746472312,1.46071382,2912.6,2911.8,0.00283904]
[1644746472507,1.46071382,2912.6,2911.8,3.29576916]
[1644746472907,1.46071382,2912.6,2912.3,0.88878004]
[1644746473309,1.46071382,2912.6,2912.3,1.18878004]
[1644746473509,1.46758974,2912.6,2912.3,1.18878004]
[1644746473710,1.46071382,2912.5,2912.3,1.18878004]
[1644746474511,1.46071382,2912.5,2912.4,23.32741834]
[1644746474712,1.46071382,2912.5,2912.4,24.27080963]
[1644746474713,0.00687592,2912.5,2912.4,24.27080963]
[1644746474918,0.00687592,2912.5,2912.4,25.27080963]
[1644746475516,3.52e-05,2912.7,2912.4,25.27080963]
[1644746475717,3.52e-05,2912.7,2912.6,20.0]
[1644746475916,3.52e-05,2912.7,2912.6,20.1716]
[1644746476156,3.52e-05,2912.7,2912.6,21.34369129]
[1644746479822,3.52e-05,2912.7,2912.6,0.17209129]
[1644746480015,3.52e-05,2912.7,2911.9,0.17209129]
[1644746480212,3.52e-05,2912.7,2911.9,3.5]
[1644746480411,3.52e-05,2912.7,2911.7,3.21831652]
[1644746480412,0.1716,2912.6,2911.7,3.21831652]
[1644746480612,0.1716,2912.6,2911.7,3.2074]
[1644746480811,0.18251209,2912.6,2911.7,3.2183157]
[1644746481012,0.18251209,2912.6,2912.0,1.08767956]
[1644746481411,0.18251209,2912.6,2912.0,1.68767956]
[1644746481812,0.1716,2912.6,2912.0,1.68767956]
[1644746482013,0.18251209,2912.6,2912.0,1.68767956]
[1644746482217,0.18251209,2912.6,2911.7,3.2183157]
[1644746482415,1.46079313,2912.5,2911.7,3.2183157]
[1644746482614,1.46079313,2912.5,2911.7,0.0109157]
[1644746482615,4.09863045,2912.4,2911.7,0.0109157]
[1644746482814,1.46079313,2912.3,2911.7,0.0109157]
[1644746483013,3.97519751,2912.2,2911.5,0.25]
[1644746483314,3.97519751,2912.2,2911.7,0.01091511]
[1644746483560,0.1825115,2912.6,2911.7,0.01091511]
[1644746483764,1.46084196,2912.5,2911.7,0.01091511]
[1644746483964,3.47807664,2912.4,2911.7,0.01091511]
[1644746484164,3.47807664,2912.4,2911.5,0.89592852]
[1644746484366,0.1716,2912.4,2911.5,0.89592852]
[1644746484668,0.1716,2912.4,2911.7,0.01067781]
[1644746484970,0.18227428,2912.6,2911.7,0.01067781]
[1644746485166,1.46084766,2912.5,2911.7,0.01067781]
[1644746485366,3.71708563,2912.4,2911.5,0.89592852]
[1644746485565,3.71708563,2912.4,2911.7,0.01067793]
[1644746485566,1.46084766,2912.3,2911.7,0.01067793]
[1644746485765,3.69133684,2912.2,2911.7,0.01067793]
[1644746486166,1.46093121,2912.1,2911.7,0.01067793]
[1644746486365,3.16204277,2912.0,2911.7,0.01067793]
[1644746486566,0.1716,2912.5,2911.1,0.00283904]
[1644746486767,1.46094167,2912.4,2911.7,0.01067734]
[1644746486966,5.24131899,2912.3,2911.7,0.01067734]
[1644746487167,0.02135468,2911.6,2911.3,0.04271471]
[1644746487809,0.02135468,2911.6,2911.2,0.00283904]
[1644746488807,0.02135468,2911.6,2911.2,0.93928741]
[1644746490116,0.02135468,2911.6,2911.2,0.93644837]
[1644746490312,0.02135468,2911.6,2911.2,0.88928741]
[1644746491455,0.02135468,2911.6,2911.1,0.00283948]
[1644746491656,0.02135468,2911.6,2911.3,0.01091518]
[1644746492558,0.02135468,2911.6,2911.2,0.9401642]
[1644746492761,0.02135468,2911.6,2911.3,0.01091511]
[1644746493756,0.02135468,2911.6,2911.2,0.8901642]
[1644746493961,0.02135468,2911.6,2911.3,0.01091511]
[1644746494915,0.02135468,2911.6,2911.2,0.8901642]
[1644746495116,0.02135468,2911.6,2911.3,0.01091511]
[1644746496115,0.02135468,2911.6,2911.2,0.8901642]
[1644746496315,0.02135468,2911.6,2911.3,0.01091511]
[1644746497417,0.02135468,2911.6,2910.9,5.53193948]
[1644746497617,0.02135468,2911.6,2911.3,0.01091511]
[1644746498656,0.02135468,2911.6,2911.0,0.85303093]
[1644746498856,0.02135468,2911.6,2911.3,0.01091511]
[1644746499658,0.02135468,2911.6,2911.0,0.85303093]
[1644746500161,0.02135468,2911.6,2911.3,0.01091511]
[1644746500969,0.02135468,2911.6,2911.0,0.85303093]
[1644746501165,0.02135468,2911.6,2911.3,0.01091511]
[1644746502165,0.02135468,2911.6,2911.0,0.85303093]
[1644746502407,0.02135468,2911.6,2911.3,0.01091511]
[1644746503307,0.02135468,2911.6,2911.0,0.85303093]
[1644746503507,0.02135468,2911.6,2911.3,0.01091511]
[1644746504511,0.02135468,2911.6,2911.0,0.85303093]
[1644746504712,0.02135468,2911.6,2911.3,0.01091511]
[1644746505718,0.02135468,2911.6,2911.0,0.85303093]
[1644746505914,0.02135468,2911.6,2911.3,0.01091511]
[1644746506962,0.02135468,2911.6,2911.0,0.85303093]
[1644746507162,0.02135468,2911.6,2911.3,0.01091511]
[1644746508162,0.02135468,2911.6,2911.0,2.15303093]
[1644746508367,0.02135468,2911.6,2911.3,0.01091511]
[1644746509065,0.02135468,2911.6,2911.5,1.10928693]
[1644746509465,0.02135468,2911.6,2911.0,1.3]
[1644746509666,0.02135468,2911.6,2911.4,0.01091497]
[1644746510518,0.02135468,2911.6,2911.0,1.3]
[1644746510716,0.02135468,2911.6,2911.4,0.91461009]
[1644746511117,0.02135468,2911.6,2911.4,1.21461009]
[1644746511717,0.02135468,2911.6,2911.4,1.20369505]
[1644746511918,0.02135468,2911.6,2911.5,3.2466]
[1644746512318,0.02135468,2911.6,2911.5,4.2466]
[1644746513564,0.02037479,2911.6,2911.5,4.2466]
[1644746514868,0.02037479,2911.6,2911.5,3.2466]
[1644746523466,0.02037479,2911.6,2911.5,8.09286924]
[1644746523868,7.479e-05,2911.6,2911.5,8.09286924]
[1644746524065,0.01091245,2912.1,2911.6,4.25]
[1644746524264,0.01091245,2912.1,2911.7,3.90778771]
[1644746524466,0.01091245,2912.1,2911.8,0.3]
[1644746524916,3.52e-05,2912.7,2911.8,0.3]
[1644746525118,3.52e-05,2912.7,2911.9,1.04527016]
[1644746525119,0.1716352,2912.7,2911.9,1.04527016]
[1644746525316,0.01091333,2912.1,2911.9,1.34527016]
[1644746526115,3.04023544,2912.7,2911.9,1.34527016]
[1644746526315,0.01091326,2912.1,2911.9,1.34527016]
[1644746526715,0.01091326,2912.1,2911.6,1.31091547]
[1644746526922,1.4607918,2912.0,2911.6,1.61091547]
[1644746527416,1.4607918,2912.0,2911.6,0.6]
[1644746527616,1.4607918,2912.0,2911.5,1.02373939]
[1644746527816,0.01091304,2912.1,2911.6,0.010915]
[1644746528017,1.4607918,2912.0,2911.6,0.010915]
[1644746528416,1.4607918,2912.0,2911.6,0.18300629]
[1644746528664,1.4607918,2912.0,2911.6,0.17209129]
[1644746528863,0.01091304,2912.1,2911.6,0.18300629]
[1644746529463,0.01091304,2912.1,2912.0,0.95455398]
[1644746529663,1.46073608,2912.1,2912.0,1.25455398]
[1644746530869,3.52e-05,2912.7,2912.0,1.55455398]
[1644746531271,0.01091319,2912.2,2912.0,1.55455398]
[1644746532169,3.52e-05,2912.7,2912.0,0.6]
[1644746532411,3.52e-05,2912.7,2912.0,0.3]
[1644746532412,0.01091312,2912.2,2912.0,0.3]
[1644746532611,0.01091312,2912.2,2911.8,0.3]
[1644746532813,0.01091312,2912.2,2912.0,0.17209129]
[1644746533413,3.52e-05,2912.7,2912.1,1.02667432]
[1644746533614,0.01091312,2912.2,2912.0,0.17209129]
[1644746533813,0.01091312,2912.2,2912.1,0.17209129]
[1644746534614,3.52e-05,2912.7,2912.1,0.17209129]
[1644746534815,0.01091305,2912.3,2912.1,0.17209129]
[1644746535621,1.46068113,2912.2,2911.7,0.3]
[1644746535819,1.46068113,2912.2,2911.9,0.98414926]
[1644746536063,0.01091298,2912.3,2911.9,0.98414926]
[1644746536266,1.46070066,2912.2,2911.9,1.75624055]
[1644746536465,0.01091298,2912.3,2911.9,1.75624055]
[1644746536765,0.01091298,2912.3,2911.9,1.15624055]
[1644746536963,3.07280049,2912.8,2911.9,1.15624055]
[1644746537162,0.01091312,2912.2,2911.9,1.15624055]
[1644746538166,0.64557806,2913.0,2911.9,1.75624055]
[1644746538366,0.01091319,2912.2,2911.9,1.75624055]
[1644746539374,3.47558383,2913.1,2911.9,1.75624055]
[1644746539571,0.01091319,2912.2,2911.9,1.75624055]
[1644746540615,3.25283632,2913.1,2911.9,1.75624055]
[1644746540815,1.4605963,2913.0,2911.9,1.75624055]
[1644746541015,0.01091319,2912.2,2911.9,1.75624055]
[1644746541219,0.01091319,2912.2,2911.9,2.92784055]
[1644746541816,0.1716,2912.9,2911.9,2.92784055]
[1644746542021,0.01091319,2912.2,2911.9,2.92784055]
[1644746542216,0.01091319,2912.2,2911.9,1.75624055]
[1644746543017,0.1716,2913.0,2911.9,1.75624055]
[1644746543217,0.01042316,2912.2,2911.9,1.75624055]
[1644746544259,0.1716,2913.0,2911.9,1.75624055]
[1644746544460,0.01042316,2912.2,2911.9,1.75624055]
[1644746545464,0.1716,2913.0,2911.9,1.75624055]
[1644746545667,0.00976353,2912.2,2911.9,21.75624055]
[1644746545866,0.00976353,2912.2,2912.0,1.0]
[1644746546268,0.00976353,2912.2,2912.1,0.17209129]
[1644746546766,0.1716,2913.1,2912.1,0.17209129]
[1644746546966,0.00974321,2912.3,2912.1,0.17209129]
[1644746547411,0.00883075,2912.3,2912.1,0.17209129]
[1644746547813,0.1716,2913.1,2912.1,0.17209129]
[1644746548010,1.4605418,2913.0,2912.1,0.17209129]
[1644746548210,0.1716,2912.9,2912.1,0.17209129]
[1644746548411,1.4605418,2912.8,2912.1,0.17209129]
[1644746548811,1.4605418,2912.7,2912.1,0.17209129]
[1644746549012,1.4605418,2912.6,2912.1,0.17209129]
[1644746549213,0.64557806,2913.4,2912.5,1.12474263]
[1644746549412,2.47470622,2913.7,2912.5,1.12474263]
[1644746549413,1.46043466,2913.3,2912.5,1.12474263]
[1644746549613,0.64557806,2913.5,2912.5,1.29683392]
[1644746549614,1.46043466,2913.2,2912.5,1.29683392]
[1644746549815,0.81717806,2913.5,2912.5,1.29683392]
[1644746549816,1.46043466,2913.1,2912.5,1.29683392]
[1644746550015,1.46043466,2913.0,2912.5,1.29683392]
[1644746550216,0.1716,2913.4,2913.0,1.00107495]
[1644746550421,0.27639994,2913.7,2912.7,0.96750911]
[1644746550422,0.55666165,2912.8,2912.7,0.96750911]
[1644746550621,0.55666165,2912.8,2912.7,25.20503344]
[1644746550817,0.64557806,2913.8,2913.5,0.86920282]
[1644746551069,0.64557806,2913.9,2913.3,0.2134]
[1644746551272,1.46025574,2913.8,2913.3,0.2134]
[1644746551570,0.64557806,2914.1,2913.3,0.2134]
[1644746551571,1.46025574,2913.7,2913.3,0.2134]
[1644746551772,0.01091104,2913.7,2913.3,0.2134]
[1644746551970,1.46025574,2913.6,2913.3,0.2134]
[1644746552270,1.46025574,2913.6,2913.2,1.12592068]
[1644746552668,1.46025574,2913.6,2913.2,1.42592068]
[1644746552869,1.47116705,2913.5,2913.2,1.42592068]
[1644746553072,1.47116705,2913.5,2913.1,1.3]
[1644746553269,1.46025574,2913.4,2913.1,1.6]
[1644746553470,1.46025574,2913.4,2913.1,0.6]
[1644746553669,1.46025574,2913.4,2913.0,20.6]
[1644746554068,1.46025574,2913.4,2913.0,0.77209129]
[1644746554270,1.47116726,2913.4,2913.0,0.47209129]
[1644746554471,1.46025574,2913.3,2913.0,0.47209129]
[1644746554920,1.46025574,2913.3,2913.0,0.17209129]
[1644746555422,0.01054337,2913.3,2913.0,0.17209129]
[1644746555820,0.01054337,2913.3,2913.0,0.47209129]
[1644746556020,0.01054337,2913.3,2913.0,0.77209129]
[1644746556222,1.4602454,2913.2,2913.0,0.47209129]
[1644746556420,3.29520637,2914.0,2913.0,0.47209129]
[1644746556421,3.94078443,2914.0,2913.0,0.47209129]
[1644746556623,0.01054337,2913.3,2913.0,0.47209129]
[1644746557224,0.01054337,2913.3,2913.0,0.17209129]
[1644746557422,1.4602569,2913.2,2913.0,0.17209129]
[1644746557625,3.74894045,2914.0,2913.0,0.17209129]
[1644746557821,1.46024088,2913.9,2913.0,0.17209129]
[1644746558021,0.01054337,2913.3,2913.0,0.17209129]
[1644746558774,3.5,2913.9,2913.4,1.15114344]
[1644746558974,1.46014276,2913.8,2913.4,1.15114344]
[1644746559173,1.46014276,2913.7,2913.4,1.15114344]
[1644746559373,3.5,2914.2,2913.5,0.47209129]
[1644746559573,1.46006954,2914.1,2913.5,0.47209129]
[1644746559976,1.46006954,2914.0,2913.5,0.47209129]
[1644746560180,1.470418,2913.9,2913.6,0.17209129]
[1644746560378,1.46006954,2913.8,2913.6,0.17209129]
[1644746561179,1.46006954,2913.7,2913.4,1.15114344]
[1644746561381,1.46006954,2913.6,2913.4,1.15114344]
[1644746561579,0.01034858,2913.8,2913.1,12.63789129]
[1644746561780,1.46016775,2913.7,2913.1,7.44529129]
[1644746561982,1.46016775,2913.7,2913.1,6.84529129]
[1644746562413,1.46016775,2913.6,2913.1,6.84529129]
[1644746562614,0.1716,2913.9,2912.8,5.6327]
[1644746562615,3.26432126,2913.5,2912.8,5.6327]
[1644746562820,3.26432126,2913.5,2912.8,9.1327]
[1644746562821,1.46016775,2913.4,2912.8,9.1327]
[1644746563013,1.46016775,2913.4,2913.1,0.95283851]
[1644746563213,1.46016775,2913.4,2912.8,9.1327]
[1644746563413,1.46016775,2913.4,2912.8,3.5]
[1644746563614,1.46016775,2913.3,2912.8,3.5]
[1644746563814,1.46016775,2913.2,2912.8,3.5]
[1644746564013,0.01036217,2913.4,2912.8,3.5]
[1644746564215,1.46027579,2913.3,2913.1,1.14248853]
[1644746564415,1.46027579,2913.3,2912.8,3.5]
[1644746564816,1.47065316,2913.3,2912.8,3.5]
[1644746565018,0.01037737,2913.3,2912.8,3.5]
[1644746565218,1.46027932,2913.2,2912.8,3.5]
[1644746566063,0.01037761,2913.1,2912.9,0.87471996]
[1644746566868,0.01037761,2913.1,2913.0,3.67209129]
[1644746567067,0.1716,2913.8,2913.0,3.67209129]
[1644746567068,0.1716,2913.8,2913.0,23.84369129]
[1644746567266,0.1716,2913.8,2913.2,20.0]
[1644746567565,0.1716,2913.8,2913.4,1.03336188]
[1644746567966,0.1716,2913.8,2913.5,0.47209129]
[1644746568367,0.1716,2913.8,2913.6,0.17209129]
[1644746568570,0.18197352,2913.8,2913.6,0.17209129]
[1644746569169,0.18197352,2913.8,2913.6,3.60749397]
[1644746569370,0.18197352,2913.8,2913.7,1.0]
[1644746569570,0.1716,2913.8,2913.7,4.36742424]
[1644746569813,0.18197346,2913.8,2913.7,1.3]
[1644746570220,0.18197346,2913.8,2913.7,4.56549318]
[1644746570418,0.18197346,2913.8,2913.7,4.73758447]
[1644746570619,0.1716,2913.8,2913.7,4.73758447]
[1644746570925,0.64936337,2914.8,2913.7,4.73758447]
[1644746570926,0.0103734,2913.9,2913.8,4.1]
[1644746571120,0.0103734,2913.9,2913.8,28.77786088]
[1644746571420,0.0103734,2913.9,2913.8,30.24995217]
[1644746571819,0.1716,2914.7,2913.8,30.24995217]
[1644746572121,0.00378531,2914.8,2914.5,1.09641189]
[1644746572122,1.45975312,2914.6,2914.5,1.09641189]
[1644746572421,0.46064723,2914.2,2914.1,23.82481785]
[1644746572820,0.46064723,2914.2,2914.1,21.17209129]
[1644746573223,0.00378531,2915.2,2914.4,0.3]
[1644746573425,1.46344288,2915.2,2914.4,3.28110784]
[1644746573665,1.45965757,2915.1,2914.4,1.77209129]
[1644746573865,1.45965757,2915.0,2914.4,1.77209129]
[1644746574066,1.46344288,2914.9,2914.4,0.77209129]
[1644746574268,1.45965757,2914.8,2914.4,0.47209129]
[1644746574466,0.00378531,2915.3,2914.4,0.47209129]
[1644746574667,0.01037275,2914.8,2914.5,0.92427079]
[1644746574870,1.459654,2914.7,2914.5,0.92427079]
[1644746575068,0.01037275,2914.8,2914.5,1.69636208]
[1644746575469,0.00378531,2915.3,2914.5,1.69636208]
[1644746575670,1.46342631,2915.3,2914.5,1.69636208]
[1644746575870,1.46342631,2915.3,2914.5,1.39636208]
[1644746575871,0.01037265,2914.8,2914.5,1.39636208]
[1644746576076,1.459641,2914.7,2914.1,1.25]
[1644746576270,1.459641,2914.7,2914.1,0.6]
[1644746576271,0.00378531,2914.6,2914.1,0.6]
[1644746576471,0.00378531,2914.6,2914.0,1.47209129]
[1644746576670,0.00378531,2914.6,2914.0,0.77209129]
[1644746576872,0.01037301,2914.5,2914.0,0.77209129]
[1644746577071,1.4598278,2914.4,2914.2,1.12199902]
[1644746577322,0.01037301,2914.5,2914.2,1.72199902]
[1644746577736,1.45983856,2914.4,2914.2,1.72199902]
[1644746577920,0.00378531,2914.9,2914.2,1.72199902]
[1644746578120,0.00378531,2914.9,2914.2,0.6]
[1644746578121,0.01037301,2914.5,2914.2,0.6]
[1644746578320,0.01037301,2914.5,2914.3,0.99931434]
[1644746578726,0.01037301,2914.5,2914.4,0.3]
[1644746578923,0.01037301,2914.5,2914.4,0.47209129]
[1644746579120,0.00378531,2914.9,2914.4,0.47209129]
[1644746579330,0.00378531,2914.9,2914.4,0.77209129]
[1644746579524,0.01037293,2914.6,2914.4,0.77209129]
[1644746580223,0.00378531,2915.3,2914.4,0.77209129]
[1644746580422,0.00378531,2915.0,2914.4,0.77209129]
[1644746580621,3.05527522,2915.3,2914.5,1.02561231]
[1644746580622,0.01037287,2914.6,2914.5,1.02561231]
[1644746580824,0.01037287,2914.6,2914.5,21.1977036]
[1644746581275,0.01037287,2914.6,2914.5,22.1977036]
[1644746581471,0.00378531,2915.5,2914.5,22.1977036]
[1644746581667,3.04551756,2915.5,2915.0,1.13844291]
[1644746581868,1.45961468,2915.4,2915.0,1.13844291]
[1644746582067,1.45961468,2915.3,2915.0,1.13844291]
[1644746582271,1.45961468,2915.2,2915.0,1.13844291]
[1644746582467,1.45961468,2915.1,2915.0,1.13844291]
[1644746582667,1.45961468,2915.1,2915.0,1.43844291]
[1644746582868,0.01037215,2915.2,2915.0,0.3]
[1644746583072,0.01037215,2915.2,2914.6,6.5601]
[1644746583073,1.45961468,2915.1,2914.6,6.5601]
[1644746583272,0.00378531,2915.0,2914.6,1.6]
[1644746583472,0.00378531,2915.0,2914.6,1.77209129]
[1644746583876,0.00378531,2915.0,2914.9,1.18478901]
[1644746584074,1.46339999,2915.5,2914.9,1.18478901]
[1644746584273,1.46339999,2915.5,2914.6,1.77209129]
[1644746584474,1.45961468,2915.4,2914.6,1.77209129]
[1644746584675,1.46339999,2915.3,2914.6,1.77209129]
[1644746584920,1.46339999,2915.3,2914.5,20.1715]
[1644746584921,4.60628602,2915.2,2914.5,0.1715]
[1644746585122,4.61007133,2915.2,2914.5,0.1715]
[1644746585318,3.15045665,2915.2,2914.5,0.1715]
[1644746585519,1.46998684,2915.1,2914.5,0.1715]
[1644746585721,4.68023026,2915.0,2914.5,0.1715]
[1644746585921,1.45961468,2914.9,2914.5,0.1715]
[1644746586220,4.53574479,2914.8,2914.5,0.1715]
[1644746586427,1.45961468,2914.7,2914.5,0.1715]
[1644746586623,3.71103491,2914.6,2914.5,0.1715]
[1644746586820,5.17064959,2914.6,2913.9,0.25]
[1644746587020,1.46339999,2914.5,2913.6,0.1715]
[1644746587221,1.46339999,2914.5,2913.7,1.15111445]
[1644746587222,3.24284565,2914.4,2913.7,1.15111445]
[1644746587420,1.46339999,2914.3,2913.7,1.15111445]
[1644746587821,0.01037339,2914.2,2913.7,1.15111445]
[1644746588668,0.00378531,2914.8,2913.7,1.45111445]
[1644746588868,0.01037351,2914.1,2913.7,1.75111445]
[1644746589874,0.00378531,2914.6,2913.7,1.75111445]
[1644746590075,1.46372985,2914.6,2913.8,0.1715]
[1644746590273,0.01037357,2914.0,2913.8,0.1715]
[1644746590873,0.01037357,2914.0,2913.7,1.75111445]
[1644746591075,3.17792085,2914.7,2913.7,1.75111445]
[1644746591275,0.01037361,2914.0,2913.7,1.45111445]
[1644746592324,0.00378531,2914.6,2913.7,1.45111445]
[1644746592514,0.01037367,2914.0,2913.7,1.45111445]
[1644746593113,0.01037367,2914.0,2913.7,1.75111445]
[1644746593518,3.34049406,2914.7,2914.2,1.0045517]
[1644746593719,0.55271649,2913.9,2913.8,1.19141985]
[1644746594118,0.55271649,2913.9,2913.8,1.49141985]
[1644746596465,2.0127325,2913.9,2913.8,1.49141985]
[1644746597265,0.55271649,2913.9,2913.8,1.66351114]
[1644746598071,0.55271649,2913.9,2913.8,5.01238944]
[1644746598272,0.55271649,2913.9,2913.8,25.31238944]
[1644746598472,0.55271649,2913.9,2913.8,26.31238944]
[1644746598870,0.55271649,2913.9,2913.8,26.48388944]
[1644746600934,0.55271649,2913.9,2913.8,26.31238944]
[1644746602535,0.55271649,2913.9,2913.8,6.31238944]
[1644746602936,0.55271649,2913.9,2913.8,26.31238944]
[1644746603337,0.55271649,2913.9,2913.8,6.31238944]
[1644746603563,0.55271649,2913.9,2913.8,2.96351114]
[1644746603765,0.55271649,2913.9,2913.8,6.31155826]
[1644746604771,0.55271649,2913.9,2913.8,26.31155826]
[1644746604970,0.55271649,2913.9,2913.8,22.96351114]
[1644746607416,0.55271649,2913.9,2913.8,2.96351114]
[1644746607818,0.55271649,2913.9,2913.8,22.96351114]
[1644746608622,0.55271649,2913.9,2913.8,2.96351114]
[1644746608822,0.55271649,2913.9,2913.8,21.96351114]
[1644746609021,0.55271649,2913.9,2913.8,22.96351114]
[1644746610423,0.55271649,2913.9,2913.8,2.96351114]
[1644746610924,0.01037368,2914.0,2913.9,22.9]
[1644746611166,0.01037368,2914.0,2913.9,20.0]
[1644746611367,0.01037368,2914.0,2913.9,21.17209129]
[1644746611567,0.64936337,2914.9,2913.9,21.17209129]
[1644746611767,0.64936337,2914.9,2914.6,1.07155836]
[1644746612169,2.10533888,2914.9,2914.6,1.07155836]
[1644746612370,1.45976082,2914.8,2914.6,1.37155836]
[1644746612674,0.64557806,2915.0,2914.6,1.37155836]
[1644746612675,1.45976082,2914.7,2914.6,1.37155836]
[1644746612870,0.64557806,2915.0,2914.6,1.37155836]
[1644746613069,0.01037266,2914.8,2914.6,1.37155836]
[1644746613270,1.45976082,2914.7,2914.6,1.37155836]
[1644746613671,0.18544841,2914.4,2914.3,1.17553625]
[1644746614071,1.64520923,2914.4,2914.3,1.34762754]
[1644746614921,1.64520923,2914.4,2914.3,2.34762754]
[1644746615123,1.64520923,2914.4,2914.3,25.57665438]
[1644746615326,1.64520923,2914.4,2914.3,22.34762754]
[1644746617723,1.64520923,2914.4,2914.3,22.51912754]
[1644746620168,1.64520923,2914.4,2914.3,2.34762754]
[1644746620367,1.64520923,2914.4,2914.3,4.62803727]
[1644746620571,1.64520923,2914.4,2914.3,2.34762754]
[1644746621169,1.64520923,2914.4,2914.3,1.34762754]
[1644746621369,1.64520923,2914.4,2914.3,2.34762754]
[1644746621569,1.64520923,2914.4,2914.3,1.34762754]
[1644746622620,1.64520923,2914.4,2914.3,21.34762754]
[1644746622818,1.64520923,2914.4,2914.3,22.34762754]
[1644746623223,0.18544841,2914.4,2914.3,2.34762754]
[1644746623419,0.18544841,2914.4,2914.3,21.34762754]
[1644746623618,0.18544841,2914.4,2914.3,2.34762754]
[1644746623819,0.18544841,2914.4,2914.3,1.34762754]
[1644746624018,1.64509354,2914.4,2914.3,2.34762754]
[1644746624219,1.64509354,2914.4,2914.3,5.59954324]
[1644746624420,1.64509354,2914.4,2914.3,2.34762754]
[1644746625425,1.64509354,2914.4,2914.3,25.59137557]
[1644746625624,1.64509354,2914.4,2914.3,22.34762754]
[1644746626070,0.18544841,2914.4,2914.3,22.34762754]
[1644746628768,0.18544841,2914.4,2914.3,23.20523754]
[1644746628970,0.18544841,2914.4,2914.3,22.34762754]
[1644746629169,0.18544841,2914.4,2914.3,2.34762754]
[1644746629170,1.64505419,2914.4,2914.3,2.34762754]
[1644746629822,1.64505419,2914.4,2914.3,5.60253882]
[1644746630022,1.64505419,2914.4,2914.3,2.34762754]
[1644746630224,1.64505419,2914.4,2914.3,5.5662205]
[1644746630422,0.18544841,2914.4,2914.3,2.34762754]
[1644746630826,1.64506336,2914.4,2914.3,2.34762754]
[1644746631726,0.18544841,2914.4,2914.3,25.5773046]
[1644746632626,0.18544841,2914.4,2914.3,22.34762754]
[1644746632826,0.18544841,2914.4,2914.3,2.34762754]
[1644746633427,1.64501586,2914.4,2914.3,25.62977039]
[1644746633672,0.18544841,2914.4,2914.3,25.62977039]
[1644746634271,1.64505451,2914.4,2914.3,25.62977039]
[1644746634472,1.64409157,2914.4,2914.3,25.62977039]
[1644746634673,0.18448547,2914.4,2914.3,25.62977039]
[1644746636078,0.18448547,2914.4,2914.3,26.48738039]
[1644746636476,1.64407162,2914.4,2914.3,26.48738039]
[1644746637077,0.18448547,2914.4,2914.3,26.48738039]
[1644746637714,1.64406677,2914.4,2914.3,26.48738039]
[1644746637918,0.18448547,2914.4,2914.3,26.48738039]
[1644746639520,0.18448547,2914.4,2914.3,26.99193542]
[1644746639920,0.18448547,2914.4,2914.3,26.13432542]
[1644746640122,1.64406493,2914.4,2914.3,26.13432542]
[1644746640822,0.18448547,2914.4,2914.3,26.13432542]
[1644746641071,0.18448547,2914.4,2914.3,26.99193542]
[1644746641473,0.18448547,2914.4,2914.3,25.62977039]
[1644746641869,0.18448547,2914.4,2914.3,22.34762754]
[1644746642870,1.64403205,2914.4,2914.3,22.34762754]
[1644746644373,1.64403205,2914.4,2914.3,2.34762754]
[1644746644574,1.64403205,2914.4,2914.3,22.34762754]
[1644746646928,1.6440044,2914.4,2914.3,22.34762754]
[1644746647926,1.6440044,2914.4,2914.3,23.20523754]
[1644746648127,1.6440044,2914.4,2914.3,25.92442892]
[1644746648566,1.6440044,2914.4,2914.3,25.06681892]
[1644746649871,1.6440044,2914.4,2914.3,25.92442892]
[1644746650074,0.64936559,2915.1,2914.5,20.0]
[1644746650278,0.00378753,2915.1,2914.6,3.64078099]
[1644746650473,0.00378753,2915.5,2914.7,20.0]
[1644746650672,0.00378753,2915.2,2914.8,3.64482758]
[1644746650872,0.00378753,2915.5,2914.9,20.0]
[1644746651175,0.00378753,2915.5,2915.1,0.85738]
[1644746651372,0.64936559,2915.7,2915.2,3.34558823]
[1644746651573,0.39913609,2915.1,2915.0,2.31415684]
[1644746651775,0.39913609,2915.1,2915.0,5.68567582]
[1644746651972,0.39913609,2915.1,2915.0,25.68567582]
[1644746652921,0.39913609,2915.1,2915.0,26.54307582]
[1644746653419,0.39913609,2915.1,2915.0,26.67098453]
[1644746655422,0.39913609,2915.1,2915.0,26.84307582]
[1644746656669,0.39913609,2915.1,2915.0,25.98567582]
[1644746658169,0.39913609,2915.1,2915.0,25.81358453]
[1644746658370,0.39913609,2915.1,2915.0,22.44206555]
[1644746659675,0.04913609,2915.1,2915.0,22.44206555]